fUST/lending_fUST_20250425
["ID","MTS","AMOUNT","RATE_DAILY","PERIOD"]
[358896077,1745532646185,-500.0,0.00016973,2]
[358896078,1745532646194,-500.0,0.00016973,2]
[358896079,1745532646204,-507.07321883,0.00016973,2]
[358896080,1745532646213,-500.0,0.00016973,2]
[358896081,1745532646222,-526.87683654,0.00016973,2]
[358896082,1745532646232,-523.52660699,0.00016973,2]
[358896083,1745532646241,-500.50064836,0.00016973,2]
[358896084,1745532646251,-500.0,0.00016973,2]
[358896085,1745532646260,-500.0,0.00016973,2]
[358896086,1745532646269,-500.0,0.00016973,2]
[358896087,1745532646278,-500.0,0.00016973,2]
[358896088,1745532646287,-500.0,0.00016973,2]
[358896089,1745532646297,-501.59335915,0.00016973,2]
[358896090,1745532646306,-500.0,0.00016973,2]
[358896091,1745532646315,-500.0,0.00016973,2]
[358896092,1745532646324,-500.61798726,0.00016973,2]
[358896093,1745532646334,-500.34761357,0.00016973,2]
[358896094,1745532646343,-528.73344489,0.00016973,2]
[358896095,1745532646352,-252.01722051,0.00016973,2]
[358896096,1745532646361,-500.0,0.00016973,2]
[358896097,1745532646371,-403.51506283,0.00016973,2]
[358896098,1745532646380,-500.28271184,0.00016973,2]
[358896099,1745532646389,-500.0,0.00016973,2]
[358896100,1745532646399,-500.0,0.00016973,2]
[358896101,1745532646408,-501.09534526,0.00016973,2]
[358896102,1745532646418,-500.0,0.00016973,2]
[358896103,1745532646427,-500.0,0.00016973,2]
[358896104,1745532646436,-284.0,0.00016973,2]
[358896105,1745532646446,-235.78385416,0.00016973,2]
[358896106,1745532646456,-500.0,0.00016973,2]
[358896107,1745532646465,-581.35849224,0.00016973,2]
[358896108,1745532646475,-500.35306572,0.00016973,2]
[358896109,1745532646484,-500.0,0.00016973,2]
[358896110,1745532646493,-590.01013141,0.00016973,2]
[358896111,1745532646503,-500.0,0.00016973,2]
[358896112,1745532646512,-500.0,0.00016973,2]
[358896113,1745532646522,-500.0,0.00016973,2]
[358896114,1745532646531,-500.27445466,0.00016973,2]
[358896115,1745532646542,-443.19438905,0.00016973,2]
[358896116,1745532646552,-502.64694534,0.00016973,2]
[358896117,1745532646561,-500.0,0.00016973,2]
[358896118,1745532646571,-500.0,0.00016973,2]
[358896119,1745532646580,-500.0,0.00016986,2]
[358896120,1745532646590,-524.27470882,0.00016986,2]
[358896121,1745532646599,-500.0,0.00016986,2]
[358896122,1745532646609,-500.0,0.00016986,2]
[358896123,1745532646618,-500.0,0.00016986,2]
[358896124,1745532646628,-500.0,0.00016986,2]
[358896125,1745532646637,-500.0,0.00016986,2]
[358896126,1745532646647,-500.0,0.00016986,2]
[358896127,1745532646656,-1258.4,0.00016986,2]
[358896128,1745532646665,-500.0,0.00016986,2]
[358896129,1745532646675,-535.6,0.00016986,2]
[358896130,1745532646686,-500.0,0.00016986,2]
[358896131,1745532646695,-500.0,0.00016986,2]
[358896132,1745532646704,-500.0,0.00016986,2]
[358896133,1745532646714,-500.0,0.00016986,2]
[358896134,1745532646723,-500.0,0.00016986,2]
[358896135,1745532646732,-500.0,0.00016986,2]
[358896136,1745532646742,-500.0,0.00016986,2]
[358896137,1745532646751,-507.30148153,0.00016986,2]
[358896138,1745532646760,-500.0,0.00016986,2]
[358896139,1745532646770,-500.0,0.00016986,2]
[358896140,1745532646779,-505.43583714,0.00016986,2]
[358896141,1745532646788,-500.0,0.00016986,2]
[358896142,1745532646798,-767.97,0.00016986,2]
[358896143,1745532646807,-500.0,0.00016986,2]
[358896144,1745532646816,-151.0,0.00016986,2]
[358896145,1745532646826,-511.0434474,0.00016986,2]
[358896146,1745532646836,-500.0,0.00016986,2]
[358896147,1745532646846,-500.0,0.00016986,2]
[358896148,1745532646855,-151.0,0.00016986,2]
[358896149,1745532646865,-500.0,0.00016986,2]
[358896150,1745532646874,-500.0,0.00016986,2]
[358896151,1745532646884,-500.0,0.00016986,2]
[358896152,1745532646894,-500.0,0.00016986,2]
[358896153,1745532646904,-618.33,0.00016986,2]
[358896154,1745532646913,-500.0,0.00016986,2]
[358896155,1745532646923,-500.0,0.00016986,2]
[358896156,1745532646932,-500.0,0.00016986,2]
[358896157,1745532646941,-500.0,0.00016986,2]
[358896158,1745532646951,-500.0,0.00016986,2]
[358896159,1745532646960,-500.0,0.00016986,2]
[358896160,1745532646971,-574.33,0.00016986,2]
[358896161,1745532646980,-500.0,0.00016986,2]
[358896163,1745532646990,-500.0,0.00016986,2]
[358896165,1745532646999,-500.0,0.00016986,2]
[358896167,1745532647008,-500.0,0.00016986,2]
[358896168,1745532647018,-500.0,0.00016986,2]
[358896169,1745532647027,-500.0,0.00016986,2]
[358896170,1745532647037,-500.0,0.00016986,2]
[358896171,1745532647046,-500.0,0.00016986,2]
[358896172,1745532647055,-500.0,0.00016986,2]
[358896173,1745532647066,-500.0,0.00016986,2]
[358896174,1745532647075,-500.0,0.00016986,2]
[358896175,1745532647085,-500.0,0.00016986,2]
[358896176,1745532647095,-500.0,0.00016986,2]
[358896177,1745532647104,-500.0,0.00016986,2]
[358896178,1745532647113,-500.0,0.00016986,2]
[358896179,1745532647123,-500.0,0.00016986,2]
[358896180,1745532647132,-500.0,0.00016986,2]
[358896181,1745532647142,-500.0,0.00016986,2]
[358896182,1745532647152,-1441.21,0.00016986,2]
[358896183,1745532647162,-500.0,0.00016986,2]
[358896184,1745532647172,-500.0,0.00016986,2]
[358896185,1745532647182,-500.0,0.00016986,2]
[358896186,1745532647191,-500.0,0.00016986,2]
[358896187,1745532647202,-500.0,0.00016986,2]
[358896188,1745532647212,-500.0,0.00016986,2]
[358896189,1745532647222,-500.0,0.00016986,2]
[358896190,1745532647231,-500.0,0.00016986,2]
[358896191,1745532647240,-500.0,0.00016986,2]
[358896192,1745532647249,-500.0,0.00016986,2]
[358896193,1745532647259,-748.41,0.00016986,2]
[358896194,1745532647268,-500.0,0.00016986,2]
[358896195,1745532647277,-500.0,0.00016986,2]
[358896196,1745532647287,-500.0,0.00016986,2]
[358896197,1745532647296,-500.0,0.00016986,2]
[358896198,1745532647305,-500.0,0.00016986,2]
[358896199,1745532647315,-500.0,0.00016986,2]
[358896200,1745532647324,-500.0,0.00016986,2]
[358896201,1745532647333,-957.85,0.00016986,2]
[358896202,1745532647343,-514.05,0.00016986,2]
[358896203,1745532647352,-500.0,0.00016986,2]
[358896204,1745532647362,-500.0,0.00016986,2]
[358896205,1745532647371,-500.0,0.00016986,2]
[358896206,1745532647380,-500.0,0.00016986,2]
[358896207,1745532647390,-500.0,0.00016986,2]
[358896208,1745532647399,-500.0,0.00016986,2]
[358896209,1745532647409,-500.0,0.00016986,2]
[358896210,1745532647419,-500.0,0.00016986,2]
[358896211,1745532647428,-500.0,0.00016986,2]
[358896212,1745532647438,-500.0,0.00016986,2]
[358896213,1745532647447,-500.0,0.00016986,2]
[358896214,1745532647457,-1182.26,0.00016986,2]
[358896215,1745532647467,-500.0,0.00016986,2]
[358896216,1745532647477,-500.0,0.00016986,2]
[358896217,1745532647486,-572.3977048,0.00016986,2]
[358896218,1745532647496,-151.0,0.00016986,2]
[358896219,1745532647507,-172.09974954,0.00016986,2]
[358896220,1745532647517,-151.0,0.00016986,2]
[358896221,1745532647527,-500.0,0.00016986,2]
[358896222,1745532647536,-500.0,0.00016986,2]
[358896223,1745532647545,-583.18,0.00016986,2]
[358896224,1745532647555,-500.0,0.00016986,2]
[358896225,1745532647564,-500.0,0.00016986,2]
[358896226,1745532647573,-504.26822801,0.00016986,2]
[358896227,1745532647583,-500.0,0.00016986,2]
[358896228,1745532647593,-500.0,0.00016986,2]
[358896229,1745532647602,-500.0,0.00016986,2]
[358896230,1745532647612,-1109.52,0.00016986,2]
[358896231,1745532647622,-500.0,0.00016986,2]
[358896232,1745532647632,-500.0,0.00016986,2]
[358896233,1745532647642,-563.48,0.00016986,2]
[358896234,1745532647651,-500.0,0.00016986,2]
[358896235,1745532647661,-500.0,0.00016986,2]
[358896236,1745532647670,-500.0,0.00016986,2]
[358896237,1745532647679,-500.0,0.00016986,2]
[358896238,1745532647689,-512.18514062,0.00016986,2]
[358896239,1745532647698,-500.0,0.00016986,2]
[358896240,1745532647708,-502.15811695,0.00016986,2]
[358896241,1745532647718,-500.0,0.00016986,2]
[358896242,1745532647728,-500.0,0.00016986,2]
[358896243,1745532647738,-500.0,0.00016986,2]
[358896244,1745532647747,-500.0,0.00016986,2]
[358896245,1745532647756,-500.0,0.00016986,2]
[358896246,1745532647766,-2783.45,0.00016986,2]
[358896247,1745532647778,-509.491473,0.00016986,2]
[358896248,1745532647788,-500.0,0.00016986,2]
[358896249,1745532647797,-500.0,0.00016986,2]
[358896250,1745532647806,-500.0,0.00016986,2]
[358896251,1745532647816,-500.0,0.00016986,2]
[358896252,1745532647825,-246.76921489,0.00016986,2]
[358896253,1745532647835,-1048.87,0.00016986,2]
[358896254,1745532647844,-502.75377171,0.00016986,2]
[358896255,1745532647854,-500.0,0.00016986,2]
[358896256,1745532647863,-500.0,0.00016986,2]
[358896257,1745532647873,-500.0,0.00016986,2]
[358896258,1745532647884,-505.67493771,0.00016986,2]
[358896259,1745532647893,-500.0,0.00016986,2]
[358896260,1745532647903,-151.0,0.00016986,2]
[358896261,1745532647915,-500.0,0.00016986,2]
[358896262,1745532647924,-500.0,0.00016986,2]
[358896263,1745532648070,-500.0,0.00016986,2]
[358896264,1745532648081,-500.0,0.00016986,2]
[358896265,1745532648092,-500.0,0.00016986,2]
[358896266,1745532648103,-500.0,0.00016986,2]
[358896267,1745532648113,-438.414703,0.00016986,2]
[358896268,1745532648124,-438.414703,0.00016986,2]
[358896269,1745532648134,-1028.85,0.00016986,2]
[358896270,1745532648145,-438.414703,0.00016986,2]
[358896271,1745532648155,-438.414703,0.00016986,2]
[358896272,1745532648165,-500.0,0.00016986,2]
[358896273,1745532648175,-500.0,0.00016986,2]
[358896274,1745532648185,-500.0,0.00016986,2]
[358896275,1745532648195,-786.88,0.00016986,2]
[358896276,1745532648204,-500.0,0.00016986,2]
[358896277,1745532648214,-500.0,0.00016986,2]
[358896278,1745532648224,-1040.7,0.00016986,2]
[358896279,1745532648234,-500.0,0.00016986,2]
[358896280,1745532648244,-584.37,0.00016986,2]
[358896281,1745532648253,-718.67,0.00016986,2]
[358896282,1745532648263,-500.0,0.00016986,2]
[358896283,1745532648274,-500.0,0.00016986,2]
[358896284,1745532648283,-763.58,0.00016986,2]
[358896285,1745532648293,-500.0,0.00016986,2]
[358896286,1745532648303,-545.7490967,0.00016986,2]
[358896287,1745532648313,-505.20174757,0.00016986,2]
[358896288,1745532648322,-500.0,0.00016986,2]
[358896289,1745532648332,-583.00405154,0.00016986,2]
[358896290,1745532648343,-500.0,0.00016986,2]
[358896291,1745532648352,-500.0,0.00016986,2]
[358896292,1745532648362,-1045.56,0.00016986,2]
[358896293,1745532648372,-500.0,0.00016986,2]
[358896294,1745532648381,-500.0,0.00016986,2]
[358896295,1745532648391,-500.0,0.00016986,2]
[358896296,1745532648401,-500.0,0.00016986,2]
[358896297,1745532648411,-500.0,0.00016986,2]
[358896298,1745532648423,-574.87,0.00016986,2]
[358896299,1745532648433,-500.0,0.00016986,2]
[358896300,1745532648443,-574.52,0.00016986,2]
[358896301,1745532648452,-500.0,0.00016986,2]
[358896302,1745532648462,-507.99274926,0.00016986,2]
[358896303,1745532648471,-1126.88,0.00016986,2]
[358896304,1745532648481,-500.0,0.00016986,2]
[358896305,1745532648491,-624.31,0.00016986,2]
[358896306,1745532648501,-395.69463621,0.00016986,2]
[358896307,1745532648511,-500.0,0.00016986,2]
[358896308,1745532648522,-500.0,0.00016986,2]
[358896309,1745532648532,-502.93607963,0.00016986,2]
[358896310,1745532648543,-500.0,0.00016986,2]
[358896311,1745532648553,-500.0,0.00016986,2]
[358896312,1745532648563,-500.0,0.00016986,2]
[358896313,1745532648573,-582.17,0.00016986,2]
[358896314,1745532648584,-500.0,0.00016986,2]
[358896315,1745532648595,-500.0,0.00016986,2]
[358896316,1745532648604,-500.0,0.00016986,2]
[358896317,1745532648614,-942.64,0.00016986,2]
[358896318,1745532648624,-151.0,0.00016986,2]
[358896319,1745532648634,-500.0,0.00016986,2]
[358896320,1745532648643,-151.0,0.00016986,2]
[358896321,1745532648653,-728.35,0.00016986,2]
[358896322,1745532648662,-500.0,0.00016986,2]
[358896323,1745532648672,-500.0,0.00016986,2]
[358896324,1745532648682,-500.0,0.00016986,2]
[358896325,1745532648691,-500.0,0.00016986,2]
[358896326,1745532648701,-500.0,0.00016986,2]
[358896327,1745532648711,-614.5441389,0.00016986,2]
[358896328,1745532648721,-500.0,0.00016986,2]
[358896329,1745532648731,-500.0,0.00016986,2]
[358896330,1745532648741,-409.55676123,0.00016986,2]
[358896331,1745532648943,-90.44323877,0.00016986,2]
[358896332,1745532648953,-500.0,0.00016986,2]
[358896333,1745532648963,-500.0,0.00016986,2]
[358896334,1745532648977,-500.0,0.00016986,2]
[358896335,1745532648986,-500.0,0.00016986,2]
[358896336,1745532648997,-500.0,0.00016986,2]
[358896337,1745532649007,-500.0,0.00016986,2]
[358896338,1745532649018,-500.0,0.00016986,2]
[358896339,1745532649028,-571.42,0.00016986,2]
[358896340,1745532649038,-500.0,0.00016986,2]
[358896341,1745532649049,-500.0,0.00016986,2]
[358896342,1745532649059,-500.0,0.00016986,2]
[358896343,1745532649069,-358.90329397,0.00016986,2]
[358896344,1745532649160,-141.09670603,0.00016986,2]
[358896345,1745532649170,-500.0,0.00016986,2]
[358896346,1745532649180,-500.0,0.00016986,2]
[358896347,1745532649190,-500.0,0.00016986,2]
[358896348,1745532649200,-168.834175,0.00016986,2]
[358896349,1745532649210,-500.0,0.00016986,2]
[358896350,1745532649219,-500.0,0.00016986,2]
[358896351,1745532649229,-500.0,0.00016986,2]
[358896352,1745532649239,-500.0,0.00016986,2]
[358896353,1745532649249,-227.32080707,0.00016986,2]
[358896354,1745532649261,-272.67919293,0.00016986,2]
[358896355,1745532649271,-500.0,0.00016986,2]
[358896356,1745532649281,-1369.45842333,0.00016986,2]
[358896357,1745532649651,-1369.38157667,0.00016986,2]
[358896358,1745532649660,-500.0,0.00016986,2]
[358896359,1745532649670,-500.0,0.00016986,2]
[358896360,1745532649681,-500.0,0.00016986,2]
[358896361,1745532649691,-500.0,0.00016986,2]
[358896362,1745532649700,-500.0,0.00016986,2]
[358896363,1745532649711,-6379.67,0.00016986,2]
[358896364,1745532649721,-500.0,0.00016986,2]
[358896365,1745532649730,-500.0,0.00016986,2]
[358896366,1745532649740,-895.8,0.00016986,2]
[358896367,1745532649749,-500.0,0.00016986,2]
[358896368,1745532649759,-500.0,0.00016986,2]
[358896369,1745532649770,-500.0,0.00016986,2]
[358896370,1745532649779,-506.75712414,0.00016986,2]
[358896371,1745532649789,-651.83,0.00016986,2]
[358896372,1745532649799,-506.78189261,0.00016986,2]
[358896373,1745532649809,-2574.29,0.00016986,2]
[358896374,1745532649819,-500.0,0.00016986,2]
[358896375,1745532649829,-505.9759132,0.00016986,2]
[358896376,1745532649839,-660.42,0.00016986,2]
[358896377,1745532649849,-500.0,0.00016986,2]
[358896378,1745532649859,-554.73,0.00016986,2]
[358896379,1745532649868,-506.56549931,0.00016986,2]
[358896380,1745532649878,-503.99125776,0.00016986,2]
[358896381,1745532649888,-731.88,0.00016986,2]
[358896382,1745532649897,-500.0,0.00016986,2]
[358896383,1745532649908,-500.0,0.00016986,2]
[358896384,1745532649918,-2900.99,0.00016986,2]
[358896385,1745532649928,-500.0,0.00016986,2]
[358896386,1745532649937,-870.26,0.00016986,2]
[358896387,1745532649946,-517.34,0.00016986,2]
[358896388,1745532649955,-500.0,0.00016986,2]
[358896389,1745532649966,-500.0,0.00016986,2]
[358896390,1745532650108,-955.71,0.00016986,2]
[358896391,1745532650119,-500.0,0.00016986,2]
[358896392,1745532650129,-943.44,0.00016986,2]
[358896393,1745532650138,-500.0,0.00016986,2]
[358896394,1745532650148,-500.0,0.00016986,2]
[358896395,1745532650158,-500.0,0.00016986,2]
[358896396,1745532650168,-500.0,0.00016986,2]
[358896397,1745532650177,-500.0,0.00016986,2]
[358896398,1745532650188,-503.40732902,0.00016986,2]
[358896399,1745532650198,-500.0,0.00016986,2]
[358896400,1745532650208,-500.0,0.00016986,2]
[358896401,1745532650217,-500.0,0.00016986,2]
[358896402,1745532650227,-511.04728586,0.00016986,2]
[358896403,1745532650237,-505.73166914,0.00016986,2]
[358896404,1745532650248,-2480.16,0.00016986,2]
[358896405,1745532650258,-504.02320453,0.00016986,2]
[358896406,1745532650268,-500.0,0.00016986,2]
[358896407,1745532650278,-500.0,0.00016986,2]
[358896408,1745532650288,-500.0,0.00016986,2]
[358896409,1745532650299,-500.0,0.00016986,2]
[358896410,1745532650309,-500.0,0.00016986,2]
[358896411,1745532650319,-500.0,0.00016986,2]
[358896412,1745532650329,-500.0,0.00016986,2]
[358896413,1745532650339,-502.94132441,0.00016986,2]
[358896414,1745532650350,-500.0,0.00016986,2]
[358896415,1745532650360,-645.92376107,0.00016986,2]
[358896416,1745532650370,-703.48,0.00016986,2]
[358896417,1745532650381,-500.0,0.00016986,2]
[358896418,1745532650391,-500.0,0.00016986,2]
[358896419,1745532650401,-503.55839231,0.00016986,2]
[358896420,1745532650411,-200.3052943,0.00016986,2]
[358896421,1745532650424,-299.6947057,0.00016986,2]
[358896422,1745532650434,-500.0,0.00016986,2]
[358896423,1745532650443,-500.0,0.00016986,2]
[358896424,1745532650453,-367.07059874,0.00016986,2]
[358896425,1745532650463,-500.0,0.00016986,2]
[358896426,1745532650473,-500.0,0.00016986,2]
[358896427,1745532650482,-275.09978068,0.00016986,2]
[358896428,1745532650503,-93.44512603,0.00016986,2]
[358896429,1745532650513,-500.0,0.00016986,2]
[358896430,1745532650523,-500.0,0.00016986,2]
[358896431,1745532650533,-2312.73644451,0.00016986,2]
[358896432,1745532650718,-500.0,0.00016438,2]
[358896433,1745532650728,-1826.94355549,0.00016986,2]
[358896434,1745532650738,-89.64556019,0.00016986,2]
[358896435,1745532650750,-410.35443981,0.00016986,2]
[358896436,1745532650760,-455.09208055,0.00016986,2]
[358896437,1745532650772,-44.90791945,0.00016986,2]
[358896438,1745532650782,-500.0,0.00016986,2]
[358896439,1745532650792,-500.0,0.00016986,2]
[358896440,1745532650801,-500.0,0.00016986,2]
[358896441,1745532650811,-500.0,0.00016986,2]
[358896442,1745532650820,-500.0,0.00016986,2]
[358896443,1745532650830,-500.0,0.00016986,2]
[358896444,1745532650839,-500.0,0.00016986,2]
[358896445,1745532650849,-546.0418725,0.00016986,2]
[358896446,1745532650866,-249.7781275,0.00016986,2]
[358896447,1745532650875,-75.19212398,0.00016986,2]
[358896448,1745532651204,-1300.2545379,0.00015586,2]
[358896449,1745532651214,-500.0,0.00016438,2]
[358896450,1745532651225,-308.32168639,0.00016438,2]
[358896451,1745532651235,-174.30061725,0.00016712,2]
[358896452,1745532651246,-424.80787602,0.00016986,2]
[358896453,1745532651256,-500.0,0.00016986,2]
[358896454,1745532651267,-500.0,0.00016986,2]
[358896455,1745532651277,-500.0,0.00016986,2]
[358896456,1745532651288,-500.0,0.00016986,2]
[358896457,1745532651298,-1042.31,0.00016986,2]
[358896458,1745532651308,-1131.41,0.00016986,2]
[358896459,1745532651317,-699.24,0.00016986,2]
[358896460,1745532651327,-500.0,0.00016986,2]
[358896461,1745532651338,-500.0,0.00016986,2]
[358896462,1745532651350,-500.0,0.00016986,2]
[358896463,1745532651360,-500.0,0.00016986,2]
[358896464,1745532651371,-500.0,0.00016986,2]
[358896465,1745532651380,-619.39,0.00016986,2]
[358896466,1745532651391,-500.0,0.00016986,2]
[358896467,1745532651401,-500.0,0.00016986,2]
[358896468,1745532651410,-500.0,0.00016986,2]
[358896469,1745532651420,-500.0,0.00016986,2]
[358896470,1745532651429,-4605.67,0.00016986,2]
[358896471,1745532651439,-296.06730264,0.00016986,2]
[358896472,1745532651451,-203.93269736,0.00016986,2]
[358896473,1745532651461,-880.3,0.00016986,2]
[358896474,1745532651470,-378.83143018,0.00016986,2]
[358896475,1745532651481,-121.16856982,0.00016986,2]
[358896476,1745532651491,-977.66564961,0.00016986,2]
[358896477,1745532651509,-1186.19617477,0.00016986,2]
[358896478,1745532651521,-1002.36817562,0.00016986,2]
[358896479,1745532651531,-225.79478377,0.00016986,2]
[358896480,1745532651759,-275.75070066,0.00016986,2]
[358896481,1745532651769,-521.62853265,0.00016986,2]
[358896482,1745532651781,-1424.35250129,0.00016986,2]
[358896484,1745533175829,4298.77692001,0.00015,2]
[358896485,1745533263569,10696.939575,0.00014606,2]
[358896486,1745533274140,327.3529071,0.00014198,2]
[358896488,1745533346213,6111.2423399,0.00014198,2]
[358896489,1745533365475,24900.0,0.00014346,2]
[358896497,1745533623733,337.0966198,0.00014174,2]
[358896498,1745533628123,-300.0,0.00015068,2]
[358896499,1745533628146,-500.0,0.00015069,2]
[358896500,1745533628169,-500.0,0.00015069,2]
[358896501,1745533628193,-500.0,0.00015069,2]
[358896502,1745533628214,-500.0,0.00015069,2]
[358896503,1745533628237,-500.0,0.00015069,2]
[358896504,1745533628264,-500.0,0.00015069,2]
[358896505,1745533628287,-214.04116166,0.00015069,2]
[358896506,1745533628319,-2127.95968863,0.00015069,2]
[358896507,1745533628341,-153.02706444,0.00015069,2]
[358896508,1745533628363,-500.0,0.00015069,2]
[358896509,1745533628386,-500.0,0.00015069,2]
[358896510,1745533628410,-500.0,0.00015069,2]
[358896511,1745533628433,-500.0,0.00015069,2]
[358896512,1745533628456,-500.0,0.00015069,2]
[358896513,1745533628489,-2127.95968863,0.00015069,2]
[358896514,1745533628511,-500.0,0.00015069,2]
[358896515,1745533628537,-500.0,0.00015069,2]
[358896516,1745533628561,-500.0,0.00015069,2]
[358896517,1745533628585,-500.0,0.00015069,2]
[358896518,1745533628620,-2127.95968863,0.00015069,2]
[358896519,1745533628644,-500.0,0.00015069,2]
[358896520,1745533628667,-500.0,0.00015069,2]
[358896521,1745533628691,-500.0,0.00015069,2]
[358896522,1745533628714,-235.52952072,0.00015069,2]
[358896523,1745533628738,-500.0,0.00015069,2]
[358896524,1745533628773,-2127.95968863,0.00015069,2]
[358896525,1745533628796,-500.0,0.00015069,2]
[358896526,1745533628819,-500.0,0.00015069,2]
[358896527,1745533628844,-500.0,0.00015069,2]
[358896528,1745533628878,-2127.95968863,0.00015069,2]
[358896529,1745533628906,-500.0,0.00015069,2]
[358896530,1745533628929,-500.0,0.00015069,2]
[358896531,1745533628956,-500.0,0.00015069,2]
[358896532,1745533628990,-2127.95968863,0.00015069,2]
[358896533,1745533629015,-500.0,0.00015069,2]
[358896534,1745533629040,-500.0,0.00015069,2]
[358896535,1745533629076,-2127.95968863,0.00015069,2]
[358896536,1745533629101,-500.0,0.00015069,2]
[358896537,1745533629135,-2127.95968863,0.00015069,2]
[358896538,1745533629159,-500.0,0.00015069,2]
[358896539,1745533629184,-500.0,0.00015069,2]
[358896540,1745533629208,-500.0,0.00015069,2]
[358896541,1745533629243,-2127.95968863,0.00015069,2]
[358896542,1745533629271,-500.0,0.00015069,2]
[358896543,1745533629303,-2127.95968863,0.00015069,2]
[358896544,1745533629328,-500.0,0.00015069,2]
[358896545,1745533629361,-2127.95968863,0.00015069,2]
[358896546,1745533629387,-500.0,0.00015069,2]
[358896547,1745533629411,-500.0,0.00015069,2]
[358896548,1745533629444,-2127.95968863,0.00015069,2]
[358896549,1745533629468,-500.0,0.00015069,2]
[358896550,1745533629492,-500.0,0.00015069,2]
[358896551,1745533629525,-2127.95968863,0.00015069,2]
[358896552,1745533629557,-2127.95968863,0.00015069,2]
[358896553,1745533629580,-188.93703407,0.00015069,2]
[358896554,1745533629611,-959.24522125,0.00015069,2]
[358896558,1745533656893,240.20274495,0.00014969,2]
[358896559,1745533699226,6646.29733758,0.000125,2]
[358896560,1745533713602,577.367243,0.00014099,2]
[358896565,1745533760733,7436.50073229,0.00014968,2]
[358896590,1745533832046,-300.0,0.00015067,2]
[358896592,1745533832057,-25.05563696,0.00015067,2]
[358896594,1745533832069,-274.94436304,0.00015067,2]
[358896597,1745533832079,-300.0,0.00015067,2]
[358896598,1745533832089,-500.0,0.00015068,2]
[358896600,1745533832099,-169.47080743,0.00015068,2]
[358896603,1745533832109,-622.88221423,0.00015068,2]
[358896604,1745533832118,-1886.64485462,0.00015068,2]
[358896607,1745533832128,-500.0,0.00015068,2]
[358896609,1745533832137,-500.0,0.00015068,2]
[358896610,1745533832147,-3065.94369679,0.00015068,2]
[358896613,1745533832162,-500.0,0.00015068,2]
[358896615,1745533832173,-581.7255023,0.00015068,2]
[358896617,1745533832183,-3065.94369679,0.00015068,2]
[358896619,1745533832193,-573.22004053,0.00015068,2]
[358896622,1745533832203,-3065.94369679,0.00015068,2]
[358896625,1745533832213,-3065.94369679,0.00015068,2]
[358896628,1745533832222,-500.0,0.00015068,2]
[358896631,1745533832232,-3065.94369679,0.00015068,2]
[358896634,1745533832242,-3065.94369679,0.00015068,2]
[358896637,1745533832252,-3065.94369679,0.00015068,2]
[358896639,1745533832262,-3065.94369679,0.00015068,2]
[358896641,1745533832271,-190.44901796,0.00015068,2]
[358896643,1745533832281,-3065.94369679,0.00015068,2]
[358896645,1745533832291,-272.7130601,0.00015068,2]
[358896648,1745533832304,-2793.23063669,0.00015068,2]
[358896649,1745533832313,-3065.94369679,0.00015068,2]
[358896652,1745533832323,-3065.94369679,0.00015068,2]
[358896653,1745533832333,-3065.94369679,0.00015068,2]
[358896656,1745533832343,-3065.94369679,0.00015068,2]